bitfinex/quotes_ETHUSD_20240608
["timestamp","ask_amount","ask_price","bid_price","bid_amount"]
[1717856925088,1.62947037,3685.9,3685.3,2.864423]
[1717856925089,1.62947037,3685.8,3685.3,2.2916]
[1717856925646,0.58660933,3686.1,3685.3,2.2916]
[1717856925647,1.62947037,3685.7,3685.3,2.2916]
[1717856926882,1.62947037,3685.7,3685.1,3.0407]
[1717856927051,1.62947037,3685.7,3685.1,3.616133]
[1717856927254,1.62947037,3685.6,3685.1,3.616133]
[1717856927851,1.62947037,3685.7,3685.1,3.616133]
[1717856928289,1.62947037,3685.7,3685.2,0.6329763]
[1717856930458,1.62947037,3685.7,3685.3,0.24694126]
[1717856930890,1.62919881,3685.7,3685.2,0.6329763]
[1717856931085,1.62919881,3685.7,3685.4,0.24693089]
[1717856931292,1.62919881,3685.7,3685.3,0.24694126]
[1717856931496,1.62919881,3685.7,3685.5,0.24692052]
[1717856931682,1.62919881,3685.7,3685.4,0.24693089]
[1717856931876,1.62919881,3685.7,3685.6,0.24691016]
[1717856932064,1.62919881,3685.7,3685.2,0.6329763]
[1717856932065,1.62919881,3685.7,3685.5,0.24692052]
[1717856932291,1.62919881,3685.7,3685.6,0.24691016]
[1717856932605,1.62919881,3685.7,3685.1,3.0407]
[1717856932785,1.62919881,3685.7,3685.2,0.24695162]
[1717856933169,1.62919881,3685.8,3685.2,0.24695162]
[1717856933413,1.62919881,3685.7,3685.2,0.24695162]
[1717856940437,1.62919881,3685.6,3685.2,0.24695162]
[1717856942934,1.62919599,3685.6,3685.2,0.24695162]
[1717856943436,1.62919575,3685.6,3685.2,0.24695162]
[1717856944347,1.62919575,3685.5,3685.2,0.24695162]
[1717856945148,1.62919575,3685.4,3685.2,0.24695162]
[1717856946953,1.62919575,3685.3,3685.2,0.24695162]
[1717856947150,1.62919575,3685.3,3684.8,3.0447]
[1717856947444,1.62937469,3685.2,3684.9,0.24644939]
[1717856947652,1.62937469,3685.2,3684.8,3.0447]
[1717856947851,1.62937469,3685.2,3685.0,0.24643902]
[1717856948052,1.62937469,3685.2,3684.9,0.24644939]
[1717856948252,1.62937469,3685.2,3685.1,0.24642866]
[1717856948476,1.62937469,3685.2,3685.0,0.24643902]
[1717856948677,1.62937469,3685.2,3685.1,0.24642866]
[1717856948986,1.62937469,3685.2,3684.8,3.620567]
[1717856949186,1.62937469,3685.2,3684.9,0.6334537]
[1717856949486,1.62937469,3685.2,3684.9,0.87990309]
[1717856952351,1.62937469,3685.2,3684.9,0.24644939]
[1717856952556,1.62937469,3685.2,3684.7,0.723]
[1717856952873,1.62937469,3685.2,3684.8,0.96945976]
[1717856958875,1.62946156,3685.1,3684.8,0.24645976]
[1717856959070,1.62946156,3685.1,3684.6,2.71397]
[1717856959300,1.62946156,3685.1,3684.9,0.24644939]
[1717856959597,0.58660616,3685.2,3684.6,2.71397]
[1717856959799,1.01966739,3685.2,3684.4,0.723]
[1717856960020,1.62961858,3684.9,3684.5,0.24649087]
[1717856960520,1.62961858,3684.8,3684.5,0.24649087]
[1717856962080,1.62961858,3684.9,3684.5,0.24649087]
[1717856962718,1.62961858,3684.9,3684.3,0.723]
[1717856962917,1.62961858,3684.9,3684.6,0.2464805]
[1717856963218,1.62961858,3684.9,3684.3,0.723]
[1717856963219,1.62961858,3684.9,3684.7,0.24647013]
[1717856963415,1.62961858,3684.8,3684.3,0.723]
[1717856963578,1.62961858,3684.8,3684.4,0.24650124]
[1717856964217,1.62961858,3684.9,3684.4,0.24650124]
[1717856964777,3.02100616,3685.3,3684.4,0.24650124]
[1717856964778,1.62961858,3685.1,3684.8,0.723]
[1717856964986,1.62961858,3685.4,3685.1,2.71361]
[1717856965183,5.05917,3686.4,3685.2,0.96941829]
[1717856965406,0.505917,3686.3,3685.7,0.723]
[1717856965683,0.505917,3686.3,3685.8,0.2463561]
[1717856966105,0.505917,3686.3,3685.5,0.723]
[1717856966497,0.505917,3686.3,3685.6,0.24637683]
[1717856967052,3.505917,3686.3,3685.6,0.24637683]
[1717856967202,0.9288087,3686.2,3685.6,0.24637683]
[1717856967379,0.723,3686.1,3685.1,3.43661]
[1717856967583,0.723,3686.1,3685.2,0.24641829]
[1717856970809,0.9288087,3686.2,3685.2,0.24641829]
[1717856971422,0.9288087,3686.2,3685.3,0.723]
[1717856971584,0.9288087,3686.2,3685.4,0.24639756]
[1717856987326,2.3245,3686.0,3685.1,3.43661]
[1717856987756,2.91106075,3686.0,3685.2,0.24641829]
[1717856989459,2.91106075,3686.0,3685.3,0.723]
[1717856989646,2.91106075,3686.0,3685.4,0.24639756]
[1717857001692,2.4772,3685.5,3685.4,0.24639756]
[1717857002983,0.58656075,3685.6,3685.4,0.24639756]
[1717857003156,2.7132,3685.7,3685.4,0.24639756]
[1717857004083,0.58656075,3685.8,3685.4,0.24639756]
[1717857004274,0.58656075,3685.9,3685.4,0.96939756]
[1717857004456,0.58656075,3685.9,3685.7,0.723]
[1717857004666,0.58656075,3686.6,3685.8,2.2979]
[1717857004890,0.0419284,3687.9,3686.3,2.71273]
[1717857004891,0.58656075,3686.9,3686.3,2.71273]
[1717857005109,0.58656075,3686.9,3686.8,0.723]
[1717857005264,0.58656075,3687.5,3686.8,2.11585466]
[1717857005459,0.58656075,3687.8,3687.1,0.723]
[1717857005796,0.0419284,3687.9,3687.1,0.723]
[1717857006002,0.0419284,3687.9,3687.3,0.723]
[1717857006618,0.0419284,3687.9,3687.8,3.0209]
[1717857006761,0.0419284,3687.9,3687.8,4.41375466]
[1717857006962,0.0419284,3687.9,3687.8,5.67631213]
[1717857007996,0.0419284,3687.9,3687.8,6.68631213]
[1717857012978,3.00083739,3689.9,3688.4,2.7112]
[1717857013304,0.00083739,3689.9,3688.7,2.2979]
[1717857013526,0.00083739,3689.9,3688.8,2.03302913]
[1717857014317,0.00083739,3689.9,3688.9,2.71076]
[1717857014525,0.00083739,3689.9,3689.0,1.39285466]
[1717857015778,0.00082723,3689.7,3689.0,1.39285466]
[1717857016117,0.00082723,3689.7,3689.1,0.47437891]
[1717857016359,0.00082723,3689.7,3689.2,1.39285466]
[1717857017232,0.00082723,3689.7,3688.9,2.71076]
[1717857017401,0.00082723,3689.7,3688.3,2.71121]
[1717857017606,2.71032,3689.6,3688.2,2.2979]
[1717857017805,2.71047,3689.4,3688.3,0.23670159]
[1717857021318,2.71047,3689.4,3688.3,1.62955625]
[1717857022230,2.71047,3689.4,3688.4,1.39285466]
[1717857022435,2.71047,3689.4,3688.4,2.05673628]
[1717857022616,2.71047,3689.4,3688.5,0.23606703]
[1717857025038,0.00082723,3689.7,3688.6,1.39285466]
[1717857025457,0.00082723,3689.7,3688.7,0.23604634]
[1717857025677,0.00082723,3689.7,3688.8,1.39285466]
[1717857025878,0.00082723,3689.7,3688.9,0.1628901]
[1717857026182,0.00082723,3689.7,3689.0,1.39285466]
[1717857026546,0.00082723,3689.7,3689.1,0.23591171]
[1717857026870,0.00082723,3689.7,3689.1,1.62876637]
[1717857038020,0.00082723,3689.7,3689.1,0.23591171]
[1717857038319,1.16122163,3689.7,3688.5,2.3834]
[1717857038524,1.16122163,3689.7,3689.2,0.23549002]
[1717857038525,0.00082723,3689.7,3689.2,0.23549002]
[1717857038693,0.58590789,3689.6,3688.6,1.39285466]
[1717857039600,0.00082723,3689.7,3688.7,0.23565143]
[1717857039913,0.58673512,3689.7,3688.8,1.39285466]
[1717857040114,0.00082723,3689.7,3688.8,1.79404527]
[1717857040313,0.58590789,3689.6,3688.9,0.23563074]
[1717857042023,0.58590789,3689.5,3688.9,0.23563074]
[1717857042199,0.58590789,3689.6,3688.9,0.23563074]
[1717857042403,0.00082723,3689.7,3688.9,0.23563074]
[1717857042404,0.58590789,3689.5,3688.9,0.23563074]
[1717857042720,0.58590789,3689.6,3688.9,0.43859834]
[1717857043057,0.58590789,3689.5,3688.9,0.43859834]
[1717857043201,0.00082723,3689.7,3688.9,0.43859834]
[1717857043202,0.58590789,3689.6,3688.9,0.43859834]
[1717857043402,0.58590789,3689.5,3688.9,0.43859834]
[1717857043631,0.58590789,3689.6,3688.9,0.43859834]
[1717857043830,0.58590789,3689.5,3688.9,0.43859834]
[1717857044037,0.58590789,3689.6,3688.9,0.43859834]
[1717857044253,0.58590789,3689.5,3688.9,0.43859834]
[1717857044558,0.58590789,3689.6,3688.9,0.43859834]
[1717857044906,0.58590789,3689.5,3688.9,0.43859834]
[1717857045250,0.58590789,3689.6,3688.9,0.43859834]
[1717857045546,0.58590789,3689.5,3688.9,0.43859834]
[1717857045846,0.58590789,3689.6,3688.9,0.43859834]
[1717857046344,0.00082723,3689.7,3688.9,0.43859834]
[1717857046595,3.2963124,3689.6,3688.9,0.43859834]
[1717857046723,0.5859924,3689.5,3688.9,0.43859834]
[1717857048202,3.2963124,3689.6,3688.9,0.43859834]
[1717857048623,0.5859924,3689.5,3688.9,0.43859834]
[1717857049721,0.5859924,3689.4,3688.9,0.43859834]
[1717857050067,0.5859924,3689.5,3688.9,0.43859834]
[1717857050261,0.5859924,3689.4,3688.9,0.43859834]
[1717857050434,0.5859924,3689.5,3688.9,0.43859834]
[1717857050635,0.5859924,3689.4,3688.9,0.43859834]
[1717857050831,0.5859924,3689.5,3688.9,0.43859834]
[1717857051031,0.5859924,3689.4,3688.9,0.43859834]
[1717857051218,0.5859924,3689.5,3688.9,0.43859834]
[1717857051445,0.5859924,3689.4,3688.9,0.43859834]
[1717857051651,0.5859924,3689.5,3688.9,0.43859834]
[1717857051822,2.71032,3689.6,3688.9,0.23563074]
[1717857051823,0.5859924,3689.4,3688.9,0.23563074]
[1717857052022,5.10137,3689.3,3688.9,0.23563074]
[1717857052217,5.10137,3689.3,3688.4,0.722]
[1717857052449,5.10137,3689.3,3688.5,0.2358915]
[1717857052632,2.71069,3689.1,3688.5,0.2358915]
[1717857059502,2.71069,3689.1,3688.3,0.722]
[1717857059713,2.71069,3689.1,3688.4,0.23622549]
[1717857061237,3.27944267,3689.1,3688.4,0.23622549]
[1717857061524,2.71087,3688.9,3688.0,5.63349]
[1717857061676,2.3857,3688.8,3688.5,0.23614383]
[1717857061879,3.02443227,3688.8,3688.0,4.91149]
[1717857062108,2.3857,3688.8,3688.1,0.23618523]
[1717857062305,0.722,3688.7,3688.1,0.23618523]
[1717857062571,3.0,3688.7,3688.1,0.23618523]
[1717857062777,0.722,3688.7,3688.1,0.23618523]
[1717857063024,3.0,3688.7,3687.9,0.722]
[1717857063174,5.09632,3689.2,3688.4,0.722]
[1717857063377,2.71062,3689.2,3688.4,0.722]
[1717857063576,2.71062,3689.2,3688.5,0.22861433]
[1717857065881,0.58609769,3689.5,3688.8,0.722]
[1717857066198,0.58609769,3689.5,3688.9,0.22834251]
[1717857066911,0.58601335,3689.5,3688.9,0.22834251]
[1717857067743,0.722,3689.2,3688.9,0.22834251]
[1717857068081,2.71071,3689.1,3688.1,2.71135]
[1717857068336,2.71071,3689.1,3688.2,0.22836557]
[1717857068649,3.29672335,3689.1,3688.2,0.22836557]
[1717857069521,3.29672335,3689.1,3688.2,0.83103713]
[1717857070228,2.71071,3689.1,3688.2,0.83103713]
[1717857070612,0.58601335,3689.2,3688.3,3.75785466]
[1717857070964,0.58601335,3689.4,3688.4,2.93951487]
[1717857071114,5.71039,3689.6,3688.5,1.39285466]
[1717857071115,0.58601335,3689.5,3688.5,1.39285466]
[1717857071318,0.58601335,3689.4,3688.6,0.66973695]
[1717857071628,0.58601335,3689.5,3688.6,0.22832418]
[1717857071826,0.58601335,3689.4,3688.7,1.39285466]
[1717857072049,0.58601335,3689.5,3688.8,2.365]
[1717857072242,3.0,3689.6,3688.9,1.39285466]
[1717857072560,0.58601335,3689.9,3689.0,0.39861581]
[1717857072769,0.58601335,3689.9,3689.0,1.79147047]
[1717857073012,0.58601335,3689.8,3689.1,0.22827245]
[1717857073295,3.0,3690.0,3689.1,0.22827245]
[1717857073296,0.58684058,3689.7,3689.1,0.22827245]
[1717857073437,0.00082723,3689.7,3689.1,0.22827245]
[1717857073968,0.58684058,3689.7,3689.1,0.22827245]
[1717857074180,0.00082723,3689.7,3689.1,0.66674674]
[1717857074672,0.58684058,3689.7,3689.1,0.66674674]
[1717857074884,0.00082723,3689.7,3689.1,0.66674674]
[1717857076057,0.58678422,3689.7,3689.1,0.66674674]
[1717857076254,0.58595699,3689.6,3689.1,0.66674674]
[1717857077257,0.00082723,3689.7,3689.1,0.66674674]
[1717857077462,0.00082723,3689.7,3689.2,0.20596014]
[1717857077781,0.58678422,3689.7,3689.2,0.43415093]
[1717857077947,0.00082723,3689.7,3689.2,0.20596014]
[1717857078143,0.00082723,3689.7,3689.3,0.22818045]
[1717857078386,0.58678422,3689.7,3689.3,0.22818045]
[1717857078555,0.00082723,3689.7,3689.2,0.20596014]
[1717857078760,0.00082723,3689.7,3689.4,0.22796714]
[1717857078965,0.58678422,3689.7,3689.3,0.22797749]
[1717857079196,0.58678422,3689.7,3689.2,0.20596014]
[1717857079197,0.58595699,3689.6,3689.5,0.2279568]
[1717857079370,0.58595699,3689.6,3689.4,0.22796714]
[1717857079574,0.58595699,3689.6,3689.5,0.2279568]
[1717857079751,0.00082723,3689.7,3689.5,0.2279568]
[1717857079969,0.00082723,3689.7,3689.2,0.20596014]
[1717857080266,0.58678422,3689.7,3689.2,0.20596014]
[1717857080578,0.00082723,3689.7,3689.3,0.22801588]
[1717857080985,0.58678422,3689.7,3689.2,0.20596014]
[1717857081165,0.00082723,3689.7,3689.4,0.22802199]
[1717857081356,0.00082723,3689.7,3689.3,0.22803234]
[1717857081555,0.00082723,3689.7,3689.5,0.22801165]
[1717857081756,0.00082723,3689.7,3689.4,0.22802199]
[1717857081958,0.00082723,3689.7,3689.6,0.22800131]
[1717857082139,0.00082723,3689.7,3689.5,0.22801165]
[1717857082341,0.00082723,3689.7,3689.6,0.22800131]
[1717857082765,0.00082723,3689.7,3689.2,0.20596014]
[1717857082983,2.71033,3689.6,3689.1,0.43847429]
[1717857083145,1.62761603,3689.3,3689.1,0.43847429]
[1717857083485,1.62761603,3689.4,3689.1,0.43847429]
[1717857083653,1.62761603,3689.5,3689.1,0.43847429]
[1717857084748,1.62761603,3689.5,3689.2,0.22798783]
[1717857085067,1.62761603,3689.5,3689.3,2.4247]
[1717857085268,1.26795505,3689.6,3689.4,0.4256029]
[1717857085492,1.26795505,3689.6,3689.4,0.22796714]
[1717857085693,0.00082723,3689.7,3689.4,0.22796714]
[1717857087463,0.00082723,3689.7,3689.2,1.39285466]
[1717857087708,0.00082723,3689.7,3689.6,2.4247]
[1717857088070,0.00082723,3689.7,3689.6,2.65255322]
[1717857088265,0.00082723,3689.7,3689.6,2.91780854]
[1717857089984,0.00082723,3689.7,3689.6,0.49310854]
[1717857090290,0.00082723,3689.7,3689.6,0.22785322]
[1717857090607,0.00082723,3689.7,3689.3,2.4247]
[1717857091201,0.00082723,3689.7,3689.4,0.22789036]
[1717857094676,0.00082723,3689.7,3689.5,0.22755706]
[1717857094916,0.00082723,3689.7,3689.1,3.87109429]
[1717857095087,0.00082723,3689.7,3689.6,0.22754671]
[1717857095413,0.00082723,3689.7,3689.2,0.62957943]
[1717857095619,0.00082723,3689.7,3689.6,0.22754671]
[1717857095821,0.00082723,3689.7,3689.2,0.62957943]
[1717857096026,0.00082723,3689.7,3689.6,0.22754671]
[1717857096221,0.00082723,3689.7,3689.2,0.62957943]
[1717857096520,0.00082723,3689.7,3689.3,0.64868994]
[1717857096719,0.00082723,3689.7,3689.3,0.87626768]
[1717857102040,0.00082723,3689.7,3689.4,4.10330466]
[1717857102535,0.00082723,3689.7,3689.5,0.22736759]
[1717857110837,0.00082723,3689.7,3689.6,2.4943]
[1717857111032,0.00082723,3689.7,3689.6,3.54099097]
[1717857111915,0.00082723,3689.7,3689.6,1.04669097]
[1717857121597,0.00082723,3689.7,3689.6,0.22712475]
[1717857121899,0.00082723,3689.7,3689.4,2.71045]
[1717857122065,0.00082723,3689.7,3689.6,0.22259482]
[1717857122266,0.00082723,3689.7,3689.4,2.71045]
[1717857122609,0.00082723,3689.7,3689.5,0.22260516]
[1717857126691,0.00082723,3689.7,3689.5,2.95621068]
[1717857130597,0.00082723,3689.7,3689.5,2.92821068]
[1717857132264,2.48782723,3689.7,3689.5,0.19460516]
[1717857132969,2.48782723,3689.7,3689.0,0.722]
[1717857133223,2.48782723,3689.7,3689.6,0.21976705]
[1717857133421,2.48782723,3689.7,3689.0,2.11485466]
[1717857133580,2.48782723,3689.7,3689.6,0.21976705]
[1717857133780,2.48782723,3689.7,3689.1,2.71067]
[1717857133980,2.48782723,3689.7,3689.6,0.21976705]
[1717857134182,2.48782723,3689.7,3689.1,2.71067]
[1717857134440,2.48782723,3689.7,3689.6,0.21976705]
[1717857134884,2.48782723,3689.7,3689.1,2.71067]
[1717857135086,2.48782723,3689.7,3689.6,0.21976705]
[1717857135296,2.48782723,3689.7,3689.1,2.71067]
[1717857135497,2.48782723,3689.7,3689.6,0.21976705]
[1717857135740,2.48782723,3689.7,3689.1,2.71067]
[1717857135895,2.48782723,3689.7,3689.6,0.21976705]
[1717857136091,2.48782723,3689.7,3689.1,2.71067]
[1717857136412,2.48782723,3689.7,3689.6,0.21976705]
[1717857136585,2.48782723,3689.7,3689.1,2.71067]
[1717857136786,2.48782723,3689.7,3689.6,0.21976705]
[1717857137042,2.48782723,3689.7,3689.1,2.71067]
[1717857137244,2.48782723,3689.7,3689.6,0.21976705]
[1717857137431,2.48782723,3689.7,3689.1,2.71067]
[1717857137626,2.48782723,3689.7,3689.6,0.21976705]
[1717857138147,2.48782723,3689.7,3689.1,2.71067]
[1717857138314,2.48782723,3689.7,3689.6,0.21976705]
[1717857138651,2.48782723,3689.7,3689.1,2.71067]
[1717857138855,2.48782723,3689.7,3689.6,0.21976705]
[1717857139024,2.86739583,3689.7,3688.7,10.19096]
[1717857139230,2.86739583,3689.7,3689.6,0.21987642]
[1717857139462,2.86739583,3689.7,3688.7,7.48]
[1717857139463,2.487,3689.5,3688.7,7.48]
[1717857139629,0.722,3689.4,3688.7,7.48]
[1717857139815,0.58585876,3689.3,3688.8,0.22006853]
[1717857140019,0.58585876,3689.4,3688.8,0.22006853]
[1717857140250,3.07285876,3689.5,3688.7,7.48]
[1717857140562,2.487,3689.5,3688.8,0.22006853]
[1717857140779,3.07285876,3689.5,3688.6,2.11485466]
[1717857140914,3.07285876,3689.5,3688.9,0.22005819]
[1717857141125,3.07285876,3689.5,3688.6,2.11485466]
[1717857141362,3.07285876,3689.5,3689.0,0.22004784]
[1717857141662,3.76141622,3689.5,3688.6,2.11485466]
[1717857141818,3.76141622,3689.5,3689.1,0.2200375]
[1717857142043,3.76141622,3689.5,3688.6,2.11485466]
[1717857142265,3.76141622,3689.5,3689.2,0.22002715]
[1717857142418,0.75741321,3689.4,3688.6,1.39285466]
[1717857142617,2.487,3689.5,3689.3,0.22001681]
[1717857142814,2.487,3689.5,3688.6,1.39285466]
[1717857143133,3.07297365,3689.5,3688.7,0.22007888]
[1717857147650,0.722,3689.4,3688.7,0.22007888]
[1717857148871,2.71069,3689.1,3688.1,2.7114]
[1717857149036,2.4124,3689.0,3688.2,1.39285466]
[1717857149360,2.4124,3689.0,3688.2,1.61324232]
[1717857149729,3.1344,3689.0,3688.2,1.61324232]
[1717857149939,4.36348002,3689.0,3688.2,1.61324232]
[1717857150253,0.722,3688.8,3688.2,0.22038766]
[1717857150454,0.722,3688.8,3687.8,3.001]
[1717857150679,0.722,3688.8,3687.9,1.39285466]
[1717857150976,0.722,3688.8,3687.9,2.32382884]
[1717857152564,4.01880365,3688.9,3687.9,2.32382884]
[1717857152885,4.01880365,3688.9,3688.0,0.722]
[1717857153185,3.29692612,3688.9,3688.1,0.22039801]
[1717857154249,3.29691311,3688.9,3688.1,0.22039801]
[1717857155553,3.29691188,3688.9,3688.1,0.22039801]
[1717857156245,2.71083,3688.9,3688.1,0.22039801]
[1717857156553,0.722,3688.8,3688.1,0.75287882]
[1717857156769,3.29691427,3688.9,3688.1,0.22039801]
[1717857156977,3.29691427,3688.9,3688.1,0.94239801]
[1717857157877,0.722,3688.8,3688.1,0.22039801]
[1717857158187,2.4124,3688.7,3687.8,0.722]
[1717857158481,2.4124,3688.7,3688.2,0.22038766]
[1717857158689,2.70350872,3688.7,3687.8,0.722]
[1717857158897,2.70350872,3688.7,3688.3,0.22037731]
[1717857159185,2.70350872,3688.7,3687.8,0.722]
[1717857159365,2.4124,3688.7,3687.8,0.722]
[1717857159536,2.4124,3688.7,3687.9,0.22062111]
[1717857164038,0.58610138,3688.8,3688.0,4.10432466]
[1717857164329,0.58610138,3689.2,3688.4,0.722]
[1717857164632,0.57717414,3689.1,3688.4,2.11485466]
[1717857164827,5.77174138,3689.3,3688.5,0.22097468]
[1717857165802,0.722,3689.2,3688.5,0.22097468]
[1717857166006,1.30810138,3689.2,3688.3,2.71124]
[1717857166830,1.30810138,3689.2,3688.4,0.22085375]
[1717857167535,0.58610138,3689.2,3688.7,2.4435]
[1717857167697,3.0,3689.5,3688.7,4.55835466]
[1717857167896,3.24759272,3689.5,3688.8,0.22084517]
[1717857168090,3.83354544,3689.5,3688.7,4.55835466]
[1717857168302,3.24759272,3689.5,3688.7,4.55835466]
[1717857168626,3.83354544,3689.5,3688.7,4.55835466]
[1717857169006,3.24759272,3689.5,3688.7,4.55835466]
[1717857170689,3.83354544,3689.5,3688.7,4.55835466]
[1717857170929,3.0,3689.5,3688.7,4.55835466]
[1717857173227,3.0,3689.5,3688.8,0.22041853]
[1717857173609,3.0,3689.5,3688.7,4.55835466]
[1717857174110,3.0,3689.5,3688.8,0.22041853]
[1717857175966,1.62770539,3689.2,3688.8,0.22041853]
[1717857176592,1.62770539,3689.2,3688.9,0.22040819]
[1717857176793,1.62770539,3689.2,3688.7,3.83635466]
[1717857176965,1.62770539,3689.2,3689.0,0.22039784]
[1717857177172,1.62770539,3689.2,3688.7,3.83635466]
[1717857177493,1.62770539,3689.2,3689.1,0.22038749]
[1717857178251,1.62770539,3689.2,3688.7,3.83635466]
[1717857178487,1.62770539,3689.2,3689.1,0.22038203]
[1717857178806,4.30795272,3689.5,3689.1,0.22038203]
[1717857178997,4.98634072,3689.5,3688.7,3.83635466]
[1717857179206,1.62776097,3689.1,3688.7,3.83635466]
[1717857179547,1.62776097,3689.1,3688.6,2.71102]
[1717857179754,1.62776097,3689.0,3688.6,2.71102]
[1717857180634,1.62776097,3689.0,3688.4,2.4435]
[1717857180773,1.62776097,3689.0,3688.4,3.83635466]
[1717857181174,1.62776097,3688.9,3688.4,0.65476947]
[1717857181413,1.62776097,3688.9,3688.2,2.71134]
[1717857181414,1.62776097,3688.9,3688.2,3.43334]
[1717857181994,1.62786912,3688.8,3688.2,3.43334]
[1717857182317,1.62786912,3688.9,3688.2,3.43334]
[1717857182524,1.62786912,3688.8,3688.2,3.43334]
[1717857183174,1.62786912,3688.9,3688.2,3.43334]
[1717857183375,1.62786912,3688.8,3688.2,3.43334]
[1717857183631,1.62786912,3688.8,3688.2,3.299024]
[1717857183992,1.62786912,3688.8,3688.2,2.71134]
[1717857185573,1.62786912,3688.7,3688.2,2.71134]
[1717857189697,1.62786912,3688.7,3688.2,2.70700999]
[1717857189888,1.62786912,3688.7,3688.3,0.22052497]
[1717857190374,1.62786912,3688.7,3688.2,2.70700999]
[1717857190574,1.62786912,3688.7,3688.4,0.22051462]
[1717857190820,1.62786912,3688.7,3688.2,2.70700999]
[1717857191120,1.62786912,3688.7,3688.5,0.22050427]
[1717857191298,1.62786912,3688.7,3688.2,2.70700999]
[1717857191501,1.62786912,3688.7,3688.6,0.22049392]
[1717857191682,1.62786912,3688.7,3688.2,2.70700999]
[1717857191886,1.62786912,3688.7,3688.6,0.22049392]
[1717857192102,1.84925932,3688.7,3688.2,2.70700999]
[1717857192473,2.2841,3688.6,3687.9,2.2804]
[1717857192720,3.91196912,3688.6,3688.3,0.22065624]
[1717857193020,3.91196912,3688.6,3688.4,0.22064589]
[1717857193185,1.62786912,3688.5,3687.9,2.2804]
[1717857194519,1.62799007,3688.5,3687.9,2.2804]
[1717857195412,1.62799007,3688.5,3687.8,3.43362]
[1717857197717,3.91209007,3688.6,3687.8,3.43362]
[1717857199091,3.91209007,3688.6,3687.8,2.71162]
[1717857199292,3.91209007,3688.6,3687.9,0.722]
[1717857199620,4.45624574,3688.6,3687.9,0.722]
[1717857202132,1.62799007,3688.5,3687.9,0.722]
[1717857203026,1.62801763,3688.5,3687.9,0.722]
[1717857203325,1.62801763,3688.4,3687.9,0.722]
[1717857203522,1.62801763,3688.5,3687.9,0.722]
[1717857203729,1.62801763,3688.4,3687.9,0.722]
[1717857204233,3.91211763,3688.6,3688.0,2.71146]
[1717857204382,1.62801763,3688.6,3688.0,2.71146]
[1717857204821,1.62801763,3688.6,3688.1,0.21978412]
[1717857206086,2.3871,3688.8,3688.1,0.21978412]
[1717857206087,1.62801763,3688.4,3688.1,0.21978412]
[1717857206797,1.62801763,3688.5,3688.1,0.21978412]
[1717857207207,1.62801763,3688.4,3688.1,0.21978412]
[1717857208200,1.62801763,3688.5,3688.1,0.21978412]
[1717857208688,1.62801763,3688.4,3688.1,0.21978412]
[1717857209823,1.62801763,3688.5,3688.1,0.21978412]
[1717857213703,1.62801763,3688.5,3688.2,2.71134]
[1717857214215,1.62801763,3688.5,3688.3,0.21976342]
[1717857214581,1.62801763,3688.5,3688.2,2.71134]
[1717857214786,1.62801763,3688.5,3688.4,0.21968743]
[1717857215040,1.62801763,3688.5,3688.2,2.71134]
[1717857215193,1.62801763,3688.5,3688.4,0.21968743]
[1717857215394,1.62801763,3688.5,3688.2,2.71134]
[1717857215593,1.62801763,3688.5,3688.4,0.21968743]
[1717857215796,1.62801763,3688.5,3688.3,0.21969778]
[1717857216023,1.62801763,3688.5,3688.2,2.71134]
[1717857216190,1.62801763,3688.5,3688.4,0.21968743]
[1717857216402,1.62801763,3688.6,3688.5,5.05492]
[1717857216758,1.62801763,3688.7,3688.5,5.05492]
[1717857216926,1.62801763,3688.7,3688.5,5.27479399]
[1717857217255,1.62776906,3688.7,3688.5,5.27479399]
[1717857218655,1.6277701,3688.7,3688.5,5.27479399]
[1717857219406,1.6277701,3688.8,3688.5,5.27479399]
[1717857219608,1.6277701,3688.9,3688.7,5.77678]
[1717857219832,2.21376733,3689.0,3688.7,5.77678]
[1717857220028,1.6277701,3689.0,3688.8,0.21967339]
[1717857220235,0.58599723,3689.4,3688.8,0.21967339]
[1717857220236,1.6277701,3689.2,3688.8,0.21967339]
[1717857220420,1.6277701,3689.2,3688.7,5.77678]
[1717857220619,1.6277701,3689.1,3688.9,0.21966304]
[1717857220825,1.6277701,3689.1,3688.8,0.21967339]
[1717857221213,1.6277701,3689.2,3688.7,5.77678]
[1717857221413,1.6277701,3689.2,3688.9,0.21966304]
[1717857221618,1.6277701,3689.3,3688.8,0.21967339]
[1717857221853,1.6277701,3689.3,3688.7,5.77678]
[1717857223656,1.62760959,3689.3,3688.7,5.77678]
[1717857227591,1.6276229,3689.3,3688.7,5.77678]
[1717857228088,0.00081302,3689.5,3688.7,5.77678]
[1717857228286,1.62764009,3689.3,3688.7,5.77678]
[1717857229774,1.62764009,3689.4,3688.7,5.77678]
[1717857231240,1.62764009,3689.4,3688.7,5.05478]
[1717857231676,1.62764009,3689.3,3688.8,0.21909966]
[1717857232068,1.62764009,3689.3,3688.7,5.05478]
[1717857232246,1.62764009,3689.3,3688.9,0.21908932]
[1717857232582,1.62764009,3689.3,3689.0,0.21907897]
[1717857232738,1.62764009,3689.3,3688.7,5.05478]
[1717857232939,1.62764009,3689.3,3688.8,0.21909966]
[1717857233135,1.62764009,3689.3,3688.7,5.05478]
[1717857233366,1.62764009,3689.3,3688.8,0.21909966]
[1717857233575,1.62764009,3689.3,3688.7,5.05478]
[1717857233783,1.62764009,3689.3,3688.8,0.21909966]
[1717857233985,1.62764009,3689.3,3688.7,5.05478]
[1717857234190,1.62764009,3689.3,3688.9,0.21908932]
[1717857234347,1.62764009,3689.3,3688.8,0.21909966]
[1717857234690,1.62764009,3689.3,3688.7,5.05478]
[1717857234855,1.62764009,3689.3,3688.9,0.21908932]
[1717857235248,1.62764009,3689.3,3688.7,5.05478]
[1717857235762,1.62764009,3689.3,3688.8,0.21909966]
[1717857235968,1.62764009,3689.3,3688.7,5.05478]
[1717857236185,1.62764009,3689.3,3688.8,0.21909966]
[1717857236565,1.62764009,3689.3,3688.7,5.05478]
[1717857236908,1.62764009,3689.3,3688.8,0.21909966]
[1717857237287,1.62764009,3689.3,3688.7,5.77678]
[1717857237484,1.62764009,3689.3,3688.9,0.21908932]
[1717857237803,1.62764009,3689.3,3688.8,0.21909966]
[1717857237973,1.62764009,3689.3,3689.0,0.21907897]
[1717857238315,1.62764009,3689.3,3688.7,5.77678]
[1717857238458,1.62764009,3689.3,3689.1,0.21896326]
[1717857238658,1.96016366,3689.3,3688.7,5.77678]
[1717857238859,1.96016366,3689.3,3689.2,0.21895292]
[1717857239056,1.96016366,3689.3,3688.7,5.77678]
[1717857239401,1.62762241,3689.2,3688.8,0.2189943]
[1717857239753,1.62762241,3689.2,3688.7,5.77678]
[1717857239958,1.62762241,3689.2,3688.8,0.2189943]
[1717857240159,1.62762241,3689.2,3688.7,5.77678]